fUST/lending_fUST_20250622
["ID","MTS","AMOUNT","RATE_DAILY","PERIOD"]
[366865192,1750527046678,-1100.42223306,0.000249,2]
[366865193,1750527260704,162.731967,0.00013699,2]
[366865198,1750528036121,-3261.09288913,0.00019986,2]
[366865199,1750528036142,-6.16042518,0.00020187,2]
[366865200,1750528039129,-156.57154182,0.00020187,2]
[366865201,1750528039152,-190.949655,0.00020916,2]
[366865202,1750528039181,-300.0,0.00020928,2]
[366865203,1750528039204,-300.0,0.00020929,2]
[366865204,1750528039227,-293.87717304,0.00020929,2]
[366865205,1750528039252,-156.48807319,0.00020929,2]
[366865206,1750528172347,-300.0,0.00020928,2]
[366865207,1750528172370,-1.50233147,0.00020929,2]
[366865208,1750528172393,-179.78060976,0.00020929,2]
[366865209,1750528172418,-500.0,0.00020929,2]
[366865210,1750528172442,-500.0,0.00020929,2]
[366865211,1750528172465,-500.0,0.00020929,2]
[366865212,1750528172489,-162.25199336,0.00020929,2]
[366865213,1750528172513,-500.0,0.00020929,2]
[366865214,1750528172534,-500.0,0.00020929,2]
[366865215,1750528172557,-500.0,0.00020929,2]
[366865216,1750528172577,-153.41193714,0.00020929,2]
[366865217,1750528172600,-500.0,0.00020929,2]
[366865218,1750528172622,-500.0,0.00020929,2]
[366865219,1750528172645,-416.46960578,0.00020929,2]
[366865220,1750528172667,-7162.8617283,0.0002093,2]
[366865254,1750528231924,-1000.0,0.00020305,2]
[366865256,1750528231934,-119.5334761,0.0002093,2]
[366865257,1750528231944,-175.713419,0.00020952,2]
[366865258,1750528231953,-300.26735439,0.00021817,2]
[366865259,1750528231963,-300.0,0.00021915,2]
[366865260,1750528231973,-170.20246779,0.00021916,2]
[366865261,1750528231982,-500.0,0.00021916,2]
[366865262,1750528231992,-369.45274898,0.00021916,2]
[366865263,1750528232001,-500.0,0.00021916,2]
[366865264,1750528232011,-500.0,0.00021916,2]
[366865265,1750528232021,-500.0,0.00021916,2]
[366865266,1750528232030,-500.0,0.00021916,2]
[366865267,1750528232039,-500.0,0.00021916,2]
[366865268,1750528232049,-500.0,0.00021916,2]
[366865269,1750528232059,-500.0,0.00021916,2]
[366865271,1750528232069,-500.0,0.00021916,2]
[366865274,1750528232079,-500.0,0.00021916,2]
[366865276,1750528232202,-500.0,0.00021916,2]
[366865277,1750528232212,-224.9184357,0.00021916,2]
[366865278,1750528232222,-500.0,0.00021916,2]
[366865279,1750528232232,-464.19443514,0.00021916,2]
[366865280,1750528232243,-500.0,0.00021916,2]
[366865281,1750528232253,-437.41959646,0.00021916,2]
[366865282,1750528232262,-500.0,0.00021916,2]
[366865283,1750528232272,-500.0,0.00021916,2]
[366865284,1750528232282,-300.0,0.00021916,2]
[366865285,1750528232292,-160.0,0.00021916,2]
[366865286,1750528232302,-445.50692239,0.00021917,2]
[366865287,1750528232312,-460.0,0.00021917,2]
[366865288,1750528232321,-460.0,0.00021917,2]
[366865289,1750528232331,-480.57661698,0.00021917,2]
[366865290,1750528232341,-460.0,0.00021917,2]
[366865291,1750528232351,-460.0,0.00021917,2]
[366865292,1750528232361,-460.0,0.00021917,2]
[366865293,1750528232370,-424.88051692,0.00021917,2]
[366865294,1750528232381,-462.29387247,0.00021917,2]
[366865295,1750528232390,-500.0,0.00021917,2]
[366865296,1750528232400,-410.64371156,0.00021917,2]
[366865297,1750528232411,-460.0,0.00021917,2]
[366865298,1750528232421,-460.0,0.00021917,2]
[366865299,1750528232431,-254.32528936,0.00021917,2]
[366865300,1750528232441,-461.66089486,0.00021917,2]
[366865301,1750528232451,-466.49170912,0.00021917,2]
[366865302,1750528232461,-460.0,0.00021917,2]
[366865303,1750528232470,-463.04693065,0.00021917,2]
[366865304,1750528232480,-460.0,0.00021917,2]
[366865305,1750528232489,-460.0,0.00021917,2]
[366865306,1750528232500,-460.0,0.00021917,2]
[366865307,1750528232510,-395.97205256,0.00021917,2]
[366865308,1750528232520,-460.0,0.00021917,2]
[366865309,1750528232529,-460.0,0.00021917,2]
[366865310,1750528232539,-460.0,0.00021917,2]
[366865311,1750528232548,-420.0,0.00021917,2]
[366865312,1750528232558,-460.0,0.00021917,2]
[366865313,1750528232567,-460.0,0.00021917,2]
[366865314,1750528232577,-460.0,0.00021917,2]
[366865316,1750528232588,-440.0,0.00021917,2]
[366865318,1750528232597,-180.83188744,0.00021917,2]
[366865319,1750528232607,-460.0,0.00021917,2]
[366865320,1750528232616,-460.0,0.00021917,2]
[366865321,1750528232626,-398.49768943,0.00021917,2]
[366865322,1750528232636,-460.0,0.00021917,2]
[366865323,1750528232646,-460.0,0.00021917,2]
[366865324,1750528232658,-396.31568514,0.00021917,2]
[366865325,1750528232669,-460.0,0.00021917,2]
[366865326,1750528232679,-460.0,0.00021917,2]
[366865327,1750528232689,-460.0,0.00021917,2]
[366865328,1750528232699,-320.14972073,0.00021917,2]
[366865329,1750528232708,-281.01849396,0.00021917,2]
[366865330,1750528232718,-345.72831615,0.00021917,2]
[366865331,1750528232728,-493.71376428,0.00021917,2]
[366865332,1750528232738,-416.71514524,0.00021917,2]
[366865333,1750528232748,-460.0,0.00021917,2]
[366865334,1750528232758,-460.0,0.00021917,2]
[366865335,1750528232769,-460.0,0.00021917,2]
[366865336,1750528232778,-460.0,0.00021917,2]
[366865337,1750528232787,-460.0,0.00021917,2]
[366865338,1750528232798,-460.0,0.00021917,2]
[366865339,1750528232808,-460.0,0.00021917,2]
[366865340,1750528232817,-460.0,0.00021917,2]
[366865341,1750528232827,-460.0,0.00021917,2]
[366865342,1750528232837,-460.0,0.00021917,2]
[366865343,1750528232847,-460.0,0.00021917,2]
[366865344,1750528232857,-460.0,0.00021917,2]
[366865345,1750528232867,-500.0,0.00021917,2]
[366865346,1750528232877,-500.0,0.00021917,2]
[366865347,1750528232887,-469.11944752,0.00021917,2]
[366865348,1750528232897,-460.0,0.00021917,2]
[366865349,1750528232909,-460.0,0.00021917,2]
[366865350,1750528232918,-460.0,0.00021917,2]
[366865351,1750528232927,-460.0,0.00021917,2]
[366865352,1750528232938,-460.0,0.00021917,2]
[366865353,1750528232948,-53.45023512,0.00021917,2]
[366865354,1750528232963,-366.27334895,0.00021917,2]
[366865355,1750528232974,-460.0,0.00021917,2]
[366865356,1750528232983,-478.77,0.00021917,2]
[366865357,1750528232994,-460.0,0.00021917,2]
[366865358,1750528233005,-460.0,0.00021917,2]
[366865359,1750528233015,-460.0,0.00021917,2]
[366865360,1750528233027,-460.0,0.00021917,2]
[366865361,1750528233037,-567.98523322,0.00021917,2]
[366865362,1750528233047,-773.84,0.00021917,2]
[366865363,1750528233057,-773.84,0.00021917,2]
[366865364,1750528233068,-773.84,0.00021917,2]
[366865365,1750528233079,-773.84,0.00021917,2]
[366865366,1750528233089,-773.84,0.00021917,2]
[366865367,1750528233100,-460.0,0.00021917,2]
[366865368,1750528233111,-460.0,0.00021917,2]
[366865369,1750528233122,-460.0,0.00021917,2]
[366865370,1750528233133,-460.0,0.00021917,2]
[366865371,1750528233144,-460.0,0.00021917,2]
[366865372,1750528233161,-605.12587577,0.00021917,2]
[366865373,1750528233172,-460.0,0.00021917,2]
[366865374,1750528233182,-460.0,0.00021917,2]
[366865375,1750528233192,-460.0,0.00021917,2]
[366865376,1750528233202,-491.96,0.00021917,2]
[366865377,1750528233212,-491.96,0.00021917,2]
[366865378,1750528233222,-491.96,0.00021917,2]
[366865379,1750528233232,-491.96,0.00021917,2]
[366865380,1750528233243,-491.96,0.00021917,2]
[366865381,1750528233254,-460.0,0.00021917,2]
[366865382,1750528233264,-1050.75,0.00021917,2]
[366865383,1750528233275,-1050.75,0.00021917,2]
[366865384,1750528233285,-1050.75,0.00021917,2]
[366865385,1750528233296,-1050.75,0.00021917,2]
[366865386,1750528233306,-1050.75,0.00021917,2]
[366865387,1750528233316,-1076.49,0.00021917,2]
[366865388,1750528233326,-1076.49,0.00021917,2]
[366865389,1750528233336,-1076.49,0.00021917,2]
[366865390,1750528233346,-1076.49,0.00021917,2]
[366865391,1750528233357,-1076.49,0.00021917,2]
[366865392,1750528233367,-347.90789933,0.00021917,2]
[366865393,1750528233377,-460.0,0.00021917,2]
[366865394,1750528233388,-460.0,0.00021917,2]
[366865395,1750528233398,-460.0,0.00021917,2]
[366865396,1750528233411,-460.0,0.00021917,2]
[366865397,1750528233423,-460.0,0.00021917,2]
[366865398,1750528233434,-460.0,0.00021917,2]
[366865399,1750528233443,-460.0,0.00021917,2]
[366865400,1750528233454,-460.0,0.00021917,2]
[366865401,1750528233464,-279.59169595,0.00021917,2]
[366865402,1750528233474,-460.0,0.00021917,2]
[366865403,1750528233486,-460.0,0.00021917,2]
[366865404,1750528233497,-460.0,0.00021917,2]
[366865405,1750528233507,-460.0,0.00021917,2]
[366865406,1750528233518,-460.0,0.00021917,2]
[366865407,1750528233528,-460.0,0.00021917,2]
[366865408,1750528233538,-460.0,0.00021917,2]
[366865409,1750528233548,-460.0,0.00021917,2]
[366865410,1750528233558,-460.0,0.00021917,2]
[366865411,1750528233569,-460.0,0.00021917,2]
[366865412,1750528233579,-460.0,0.00021917,2]
[366865413,1750528233589,-460.0,0.00021917,2]
[366865414,1750528233598,-460.0,0.00021917,2]
[366865415,1750528233608,-460.0,0.00021917,2]
[366865416,1750528233618,-460.0,0.00021917,2]
[366865417,1750528233628,-490.02,0.00021917,2]
[366865418,1750528233638,-460.0,0.00021917,2]
[366865419,1750528233648,-460.0,0.00021917,2]
[366865420,1750528233660,-460.0,0.00021917,2]
[366865421,1750528233670,-500.0,0.00021917,2]
[366865422,1750528233681,-460.0,0.00021917,2]
[366865423,1750528233691,-460.0,0.00021917,2]
[366865424,1750528233701,-460.0,0.00021917,2]
[366865425,1750528233711,-460.0,0.00021917,2]
[366865426,1750528233721,-460.0,0.00021917,2]
[366865427,1750528233731,-460.0,0.00021917,2]
[366865428,1750528233742,-250.05685357,0.00021917,2]
[366865429,1750528233755,-209.94314643,0.00021917,2]
[366865430,1750528233767,-306.40685357,0.00021917,2]
[366865442,1750528237691,-991.65267606,0.000219,6]
[366865443,1750528237701,-316.32,0.00021907,10]
[366865444,1750528237711,-324.05217842,0.00021915,2]
[366865445,1750528237721,-153.59314643,0.00021917,2]
[366865446,1750528237731,-460.0,0.00021917,2]
[366865447,1750528237741,-460.0,0.00021917,2]
[366865448,1750528237751,-460.0,0.00021917,2]
[366865449,1750528237760,-460.0,0.00021917,2]
[366865450,1750528237770,-460.0,0.00021917,2]
[366865451,1750528237779,-460.0,0.00021917,2]
[366865452,1750528237788,-460.0,0.00021917,2]
[366865453,1750528237798,-460.0,0.00021917,2]
[366865454,1750528237808,-460.0,0.00021917,2]
[366865455,1750528237818,-89.6404488,0.00021917,2]
[366865456,1750528237837,-299.88738122,0.00021917,2]
[366865458,1750528237848,-70.47216998,0.00021917,2]
[366865459,1750528237858,-229.52783002,0.00021917,2]
[366865460,1750528237871,-230.47216998,0.00021917,2]
[366865461,1750528237880,-460.0,0.00021917,2]
[366865463,1750528237890,-460.0,0.00021917,2]
[366865465,1750528237899,-460.0,0.00021917,2]
[366865467,1750528237909,-460.0,0.00021917,2]
[366865469,1750528237918,-460.0,0.00021917,2]
[366865471,1750528237928,-460.0,0.00021917,2]
[366865473,1750528237937,-460.0,0.00021917,2]
[366865475,1750528237947,-460.0,0.00021917,2]
[366865477,1750528237957,-460.0,0.00021917,2]
[366865478,1750528237965,-460.0,0.00021917,2]
[366865480,1750528237975,-460.0,0.00021917,2]
[366865482,1750528237984,-460.0,0.00021917,2]
[366865484,1750528237993,-460.0,0.00021917,2]
[366865486,1750528238002,-531.61,0.00021917,2]
[366865488,1750528238012,-460.0,0.00021917,2]
[366865490,1750528238021,-460.0,0.00021917,2]
[366865492,1750528238032,-321.61813899,0.00021917,2]
[366865494,1750528238041,-378.7832482,0.00021917,2]
[366865496,1750528238051,-460.0,0.00021917,2]
[366865498,1750528238061,-460.0,0.00021917,2]
[366865500,1750528238070,-460.0,0.00021917,2]
[366865502,1750528238079,-460.0,0.00021917,2]
[366865504,1750528238089,-460.0,0.00021917,2]
[366865506,1750528238099,-460.0,0.00021917,2]
[366865508,1750528238109,-460.0,0.00021917,2]
[366865510,1750528238120,-460.0,0.00021917,2]
[366865512,1750528238130,-437.82945014,0.00021917,2]
[366865514,1750528238141,-460.0,0.00021917,2]
[366865516,1750528238156,-460.0,0.00021917,2]
[366865518,1750528238173,-460.0,0.00021917,2]
[366865520,1750528238183,-460.0,0.00021917,2]
[366865522,1750528238193,-460.0,0.00021917,2]
[366865524,1750528238203,-460.0,0.00021917,2]
[366865526,1750528238212,-151.0,0.00021917,2]
[366865528,1750528238222,-151.0,0.00021917,2]
[366865530,1750528238231,-419.75326746,0.00021917,2]
[366865532,1750528238241,-151.000001,0.00021917,2]
[366865534,1750528238251,-151.0,0.00021917,2]
[366865536,1750528238261,-460.0,0.00021917,2]
[366865539,1750528238270,-214.69770486,0.00021917,2]
[366865541,1750528238280,-460.0,0.00021917,2]
[366865543,1750528238289,-460.0,0.00021917,2]
[366865545,1750528238299,-461.6,0.00021917,2]
[366865547,1750528238309,-466.43058577,0.00021917,2]
[366865549,1750528238320,-151.0,0.00021917,2]
[366865551,1750528238329,-151.0,0.00021917,2]
[366865553,1750528238339,-151.0,0.00021917,2]
[366865555,1750528238349,-151.0,0.00021917,2]
[366865557,1750528238359,-460.0,0.00021917,2]
[366865567,1750528238450,-151.0,0.00021917,2]
[366865569,1750528238460,-151.0,0.00021917,2]
[366865571,1750528238469,-313.60835259,0.00021917,2]
[366865573,1750528238479,-460.0,0.00021917,2]
[366865575,1750528238489,-460.0,0.00021917,2]
[366865577,1750528238499,-460.0,0.00021917,2]
[366865579,1750528238509,-460.0,0.00021917,2]
[366865581,1750528238518,-460.0,0.00021917,2]
[366865583,1750528238527,-466.72535439,0.00021917,2]
[366865585,1750528238537,-460.0,0.00021917,2]
[366865588,1750528238555,-460.0,0.00021917,2]
[366865590,1750528238565,-460.0,0.00021917,2]
[366865592,1750528238574,-460.0,0.00021917,2]
[366865594,1750528238584,-460.0,0.00021917,2]
[366865596,1750528238594,-460.0,0.00021917,2]
[366865598,1750528238603,-460.0,0.00021917,2]
[366865600,1750528238612,-460.0,0.00021917,2]
[366865602,1750528238622,-460.0,0.00021917,2]
[366865604,1750528238631,-497.6,0.00021917,2]
[366865606,1750528238642,-326.4936666,0.00021918,7]
[366865608,1750528238651,-166.0,0.00021918,2]
[366865610,1750528238662,-150.17579791,0.00021918,2]
[366865612,1750528238672,-205.10653006,0.00021918,2]
[366865614,1750528238682,-500.0,0.00021944,2]
[366865616,1750528238691,-500.0,0.00021944,2]
[366865618,1750528238701,-500.0,0.00021944,2]
[366865620,1750528238710,-279.45435886,0.00021944,2]
[366865622,1750528238720,-151.0,0.00021944,2]
[366865624,1750528238729,-245.0,0.00021944,2]
[366865626,1750528238738,-151.0,0.00021944,2]
[366865628,1750528238747,-198.0,0.00021944,2]
[366865630,1750528238757,-198.0,0.00021944,2]
[366865632,1750528238766,-231.33894044,0.00021972,2]
[366865634,1750528238776,-500.0,0.00021972,2]
[366865636,1750528238786,-500.0,0.00021972,2]
[366865638,1750528238795,-199.97087402,0.00021972,2]
[366865640,1750528238805,-221.47516201,0.00021972,2]
[366865642,1750528238815,-460.0,0.00021972,2]
[366865644,1750528238825,-460.0,0.00021972,2]
[366865646,1750528238834,-575.1298776,0.00021973,2]
[366865648,1750528238843,-504.91035382,0.00021973,2]
[366865650,1750528238853,-500.0,0.00021973,2]
[366865652,1750528238862,-500.61685204,0.00021973,2]
[366865654,1750528238872,-500.0,0.00021973,2]
[366865656,1750528238882,-500.0,0.00021973,2]
[366865658,1750528238892,-500.0,0.00021973,2]
[366865660,1750528238901,-500.0,0.00021973,2]
[366865662,1750528238911,-500.0,0.00021973,2]
[366865664,1750528238921,-315.09636162,0.00021973,2]
[366865666,1750528238930,-500.0,0.00021973,2]
[366865668,1750528238940,-500.0,0.00021973,2]
[366865670,1750528238950,-500.0,0.00021973,2]
[366865672,1750528238960,-498.58365252,0.00021973,2]
[366865674,1750528238969,-500.0,0.00021973,2]
[366865676,1750528238978,-500.0,0.00021973,2]
[366865678,1750528238987,-505.3847036,0.00021973,2]
[366865680,1750528238996,-500.0,0.00021973,2]
[366865682,1750528239005,-500.0,0.00021973,2]
[366865684,1750528239015,-500.0,0.00021973,2]
[366865686,1750528239024,-501.23785456,0.00021973,2]
[366865688,1750528239034,-500.51038034,0.00021973,2]
[366865690,1750528239043,-502.38615315,0.00021973,2]
[366865692,1750528239052,-502.51764797,0.00021973,2]
[366865694,1750528239062,-501.33909667,0.00021973,2]
[366865696,1750528239073,-503.59910326,0.00021973,2]
[366865698,1750528239083,-500.0,0.00021973,2]
[366865700,1750528239093,-500.0,0.00021973,2]
[366865702,1750528239102,-318.31523256,0.00021973,2]
[366865704,1750528239111,-256.63666679,0.00021973,2]
[366865706,1750528239120,-502.33070302,0.00021973,2]
[366865708,1750528239130,-506.27587213,0.00021973,2]
[366865710,1750528239139,-154.24575744,0.00021973,2]
[366865712,1750528239151,-501.28333131,0.00021973,2]
[366865714,1750528239162,-514.47048121,0.00021973,2]
[366865718,1750528239172,-501.90290909,0.00021973,2]
[366865721,1750528239182,-500.0,0.00021973,2]
[366865723,1750528239193,-500.0,0.00021973,2]
[366865725,1750528239202,-500.0,0.00021999,2]
[366865727,1750528239212,-173.0,0.00022,2]
[366865729,1750528239221,-168.0,0.00022,2]
[366865731,1750528239231,-500.0,0.00022027,2]
[366865733,1750528239241,-991.65267594,0.00022038,6]
[366865735,1750528239250,-500.0,0.00022054,2]
[366865737,1750528239259,-500.0,0.00022081,2]
[366865739,1750528239268,-773.84,0.00022083,2]
[366865741,1750528239277,-491.96,0.00022083,2]
[366865743,1750528239287,-1050.75,0.00022083,2]
[366865745,1750528239296,-1076.49,0.00022083,2]
[366865747,1750528239305,-460.0,0.00022083,2]
[366865749,1750528239314,-460.0,0.00022083,2]
[366865751,1750528239324,-460.0,0.00022083,2]
[366865754,1750528239333,-460.0,0.00022083,2]
[366865757,1750528239342,-380.07404203,0.00022084,2]
[366865760,1750528239351,-518.64941684,0.00022084,2]
[366865762,1750528239360,-500.0,0.00022109,2]
[366865766,1750528239370,-500.0,0.00022136,2]
[366865768,1750528239379,-991.65267594,0.00022176,6]
[366865773,1750528239390,-300.26735433,0.00022303,2]
[366865776,1750528239399,-460.0,0.00022313,2]
[366865779,1750528239410,-460.0,0.00022313,2]
[366865781,1750528239419,-991.65267594,0.00022314,7]
[366865783,1750528239428,-177.0,0.00022397,2]
[366865785,1750528239438,-177.0,0.00022427,2]
[366865787,1750528239448,-347.0,0.0002243,2]
[366865789,1750528239457,-991.65267594,0.00022452,7]
[366865791,1750528239466,-505.39640988,0.00022465,2]
[366865794,1750528239476,-230.10342898,0.00022512,2]
[366865797,1750528239486,-836.41202323,0.00022512,2]
[366865802,1750528239497,-160.0,0.00022512,2]
[366865805,1750528239507,-213.55395994,0.00022513,2]
[366865808,1750528239516,-160.0,0.00022513,2]
[366865811,1750528239526,-160.0,0.00022513,2]
[366865814,1750528239535,-160.0,0.00022513,2]
[366865817,1750528239544,-424.93363889,0.00022513,2]
[366865820,1750528239554,-846.23824438,0.00022513,2]
[366865823,1750528239563,-325.28327851,0.00022521,2]
[366865826,1750528239572,-1000.0,0.00022521,2]
[366865828,1750528239582,-1000.0,0.00022521,2]
[366865832,1750528239591,-350.24060396,0.00022521,2]
[366865835,1750528239601,-1000.0,0.00022521,2]
[366865838,1750528239611,-421.47928408,0.00022521,2]
[366865841,1750528239620,-512.18749651,0.00022521,2]
[366865844,1750528239630,-1005.04697599,0.00022521,2]
[366865847,1750528239639,-500.0,0.00022521,2]
[366865850,1750528239648,-1000.0,0.00022521,2]
[366865853,1750528239658,-272.07536309,0.00022521,2]
[366865854,1750528239668,-500.0,0.00022521,2]
[366865857,1750528239677,-506.51202744,0.00022521,2]
[366865860,1750528239687,-1132.44017871,0.00022521,2]
[366865863,1750528239696,-534.13547628,0.00022521,2]
[366865866,1750528239705,-541.32565246,0.00022541,2]
[366865869,1750528239714,-991.65267594,0.0002259,7]
[366865872,1750528239724,-177.0,0.0002265,2]
[366865875,1750528239733,-177.0,0.00022726,2]
[366865878,1750528239743,-991.65267594,0.00022728,7]
[366865880,1750528239753,-177.0,0.0002276,2]
[366865883,1750528239762,-420.0,0.00022768,2]
[366865886,1750528239772,-773.84,0.00022776,2]
[366865890,1750528239782,-491.96,0.00022776,2]
[366865892,1750528239791,-1050.75,0.00022776,2]
[366865895,1750528239801,-1076.49,0.00022776,2]
[366865898,1750528239810,-460.0,0.00022776,2]
[366865900,1750528239819,-460.0,0.00022776,2]
[366865903,1750528239828,-460.0,0.00022776,2]
[366865906,1750528239838,-460.0,0.00022776,2]
[366865909,1750528239847,-460.0,0.00022776,2]
[366865912,1750528239857,-347.0,0.00022777,2]
[366865915,1750528239866,-300.26735433,0.00022789,2]
[366865918,1750528239875,-186.78,0.00022939,2]
[366865921,1750528239884,-460.0,0.00022939,2]
[366865924,1750528239893,-773.84,0.0002294,2]
[366865926,1750528239904,-491.96,0.0002294,2]
[366865929,1750528239915,-1050.75,0.0002294,2]
[366865932,1750528239925,-1076.49,0.0002294,2]
[366865935,1750528239935,-460.0,0.0002294,2]
[366865938,1750528239945,-460.0,0.0002294,2]
[366865941,1750528239954,-460.0,0.0002294,2]
[366865944,1750528239964,-460.0,0.0002294,2]
[366865947,1750528239973,-460.0,0.0002294,2]
[366865950,1750528239982,-460.0,0.0002294,2]
[366865953,1750528239991,-596.04638476,0.0002294,2]
[366865956,1750528240002,-300.0,0.00022941,2]
[366865959,1750528240012,-230.51303626,0.00022941,2]
[366865962,1750528240021,-23828.27089503,0.00022941,2]
[366865965,1750528240030,-500.0,0.00022941,2]
[366865967,1750528240040,-500.0,0.00022941,2]
[366865970,1750528240050,-500.0,0.00022941,2]
[366865973,1750528240060,-500.0,0.00022941,2]
[366865976,1750528240069,-500.0,0.00022941,2]
[366865979,1750528240079,-500.0,0.00022941,2]
[366865982,1750528240088,-207.4,0.00022941,2]
[366865985,1750528240098,-500.0,0.00022941,2]
[366865988,1750528240107,-500.0,0.00022941,2]
[366865991,1750528240117,-500.0,0.00022941,2]
[366865994,1750528240126,-500.0,0.00022941,2]
[366865997,1750528240135,-500.0,0.00022941,2]
[366866000,1750528240144,-500.0,0.00022941,2]
[366866003,1750528240158,-373.52180027,0.00022941,2]
[366866006,1750528240168,-276.0,0.00022952,2]
[366866009,1750528240178,-347.0,0.00023005,2]
[366866012,1750528240187,-773.84,0.00023013,2]
[366866015,1750528240199,-491.96,0.00023013,2]
[366866018,1750528240209,-1050.75,0.00023013,2]
[366866021,1750528240219,-1076.49,0.00023013,2]
[366866024,1750528240230,-460.0,0.00023013,2]
[366866027,1750528240240,-273.83497485,0.00023013,2]
[366866030,1750528240249,-460.0,0.00023013,2]
[366866033,1750528240259,-173.0,0.00023014,7]
[366866036,1750528240269,-347.0,0.00023054,2]
[366866039,1750528240279,-231.90581439,0.00023068,2]
[366866042,1750528240289,-1500.0,0.00023068,2]
[366866045,1750528240299,-698.37650219,0.00023068,2]
[366866046,1750528240310,-276.0,0.0002307,2]
[366866048,1750528240319,-180.0,0.00023086,2]
[366866051,1750528240329,-177.0,0.00023176,2]
[366866053,1750528240339,-500.0,0.00023238,2]
[366866056,1750528240349,-300.26735433,0.00023275,2]
[366866059,1750528240358,-160.0,0.00023286,2]
[366866061,1750528240368,-3759.64,0.00023381,2]
[366866064,1750528240378,-500.0,0.0002342,2]
[366866066,1750528240386,-308.09881753,0.00023561,2]
[366866069,1750528240396,-1500.0,0.00023616,2]
[366866073,1750528240406,-773.84,0.00023623,2]
[366866075,1750528240417,-491.96,0.00023623,2]
[366866078,1750528240426,-1050.75,0.00023623,2]
[366866081,1750528240436,-1076.49,0.00023623,2]
[366866084,1750528240445,-460.0,0.00023623,2]
[366866087,1750528240455,-460.0,0.00023623,2]
[366866091,1750528240465,-729.05809175,0.00023633,2]
[366866094,1750528240475,-500.0,0.00023756,2]
[366866096,1750528240484,-300.26735433,0.0002376,2]
[366866098,1750528240493,-460.0,0.00023814,2]
[366866101,1750528240503,-420.0,0.00023816,2]
[366866104,1750528240512,-500.0,0.0002389,2]
[366866107,1750528240522,-500.0,0.0002389,2]
[366866110,1750528240531,-500.0,0.0002389,2]
[366866113,1750528240540,-2684.54893093,0.0002399,2]
[366866116,1750528240549,-523.9660634,0.00024,3]
[366866119,1750528240558,-523.9660634,0.00024,3]
[366866121,1750528240568,-460.0,0.00024109,2]
[366866124,1750528240578,-460.0,0.00024109,2]
[366866143,1750528240664,-460.0,0.00024109,2]
[366866145,1750528240674,-460.0,0.00024109,2]
[366866147,1750528240683,-443.58519938,0.00024133,2]
[366866149,1750528240692,-773.84,0.00024237,2]
[366866151,1750528240702,-491.96,0.00024237,2]
[366866153,1750528240711,-1050.75,0.00024237,2]
[366866155,1750528240721,-1076.49,0.00024237,2]
[366866157,1750528240730,-460.0,0.00024237,2]
[366866159,1750528240739,-460.0,0.00024237,2]
[366866161,1750528240748,-5000.0,0.00024238,2]
[366866163,1750528240758,-460.0,0.00024245,2]
[366866165,1750528240767,-300.26735433,0.00024246,2]
[366866167,1750528240776,-168.0,0.00024288,2]
[366866169,1750528240785,-1355.37,0.000243,7]
[366866171,1750528240794,-215.0738,0.0002431,2]
[366866173,1750528240803,-348.03,0.00024339,2]
[366866175,1750528240813,-965.0,0.0002434,2]